fUSD/lending_fUSD_20240429
["ID","MTS","AMOUNT","RATE_DAILY","PERIOD"]
[324857729,1714374643327,-300.0,0.00012603,2]
[324857730,1714374643338,-522.35,0.00012603,2]
[324857731,1714374643347,-162.94,0.00012603,2]
[324857732,1714374643357,-150.0,0.00012603,2]
[324857733,1714374643371,-350.66,0.00012603,2]
[324857734,1714374643380,-522.35,0.00012603,2]
[324857737,1714374643389,-162.94,0.00012603,2]
[324857740,1714374643399,-150.0,0.00012603,2]
[324857743,1714374643408,-150.0,0.00012603,2]
[324857745,1714374643418,-522.35,0.00012603,2]
[324857746,1714374643427,-162.94,0.00012603,2]
[324857747,1714374643436,-350.66,0.00012603,2]
[324857748,1714374643446,-162.94,0.00012603,2]
[324857749,1714374643456,-350.66,0.00012603,2]
[324857750,1714374643466,-522.35,0.00012603,2]
[324857751,1714374643475,-522.35,0.00012603,2]
[324857752,1714374643484,-162.94,0.00012603,2]
[324857753,1714374643494,-350.66,0.00012603,2]
[324857754,1714374643503,-163.39,0.00012603,2]
[324857755,1714374643513,-191.75,0.00012603,2]
[324857756,1714374643523,-350.66,0.00012603,2]
[324857757,1714374643533,-350.66,0.00012603,2]
[324857758,1714374643543,-206.68516224,0.00012663,2]
[324857759,1714374643554,-150.0,0.00012696,2]
[324857760,1714374643564,-552.29,0.00012699,2]
[324857761,1714374643573,-47496.76850863,0.000127,2]
[324857762,1714374643865,-500.0,0.00012323,2]
[324857763,1714374643875,-500.0,0.00012597,2]
[324857764,1714374643884,-14771.0,0.000127,2]
[324857765,1714374643896,-502.88267071,0.000127,2]
[324857766,1714374643907,-2818.815,0.000127,2]
[324857780,1714374644378,-500.0,0.00011774,2]
[324857781,1714374644388,-197.730955,0.00011774,2]
[324857782,1714374644400,-302.269045,0.00011774,2]
[324857783,1714374644410,-18.20967354,0.000127,2]
[324857784,1714374644622,-13070.47283686,0.000127,2]
[324857785,1714374644635,-837.85090234,0.000127,2]
[324857789,1714374646488,-500.0,0.00011774,2]
[324857790,1714374646498,-500.0,0.00011775,2]
[324857791,1714374646507,-4040.35884608,0.00011776,2]
[324857792,1714374646516,-500.0,0.00012049,2]
[324857793,1714374646525,-500.0,0.00012323,2]
[324857794,1714374646538,-162.04115392,0.00012597,2]
[324857795,1714374649369,-2563.21,0.00011775,2]
[324857796,1714374649379,-2563.21,0.00012049,2]
[324857797,1714374649388,-1077.58000001,0.00012323,2]
[324857798,1714375031598,16822.5626797,0.000251,120]
[324857814,1714375833209,-628.67,9.257e-05,2]
[324857815,1714375833223,-166.21191824,0.000106,2]
[324857816,1714375833236,-397.45432083,0.000107,2]
[324857817,1714375833535,-854.50571578,0.000107,2]
[324857818,1714375833548,-1100.17840181,0.000107,2]
[324857819,1714375833557,-150.0,0.00010998,2]
[324857820,1714375833567,-2103.50858367,0.00010999,2]
[324857821,1714375833579,-624.14765678,0.00010999,2]
[324857823,1714375833800,-5030.34954159,0.00010999,2]
[324857825,1714375833813,-266.95713616,0.00010999,2]
[324857941,1714375837867,-1128.29443129,0.00010999,2]
[324857942,1714375837883,-323.97031072,0.00010999,2]
[324857943,1714375838068,-2489.50060599,0.00010999,2]
[324857944,1714375838079,-9754.47135818,0.00010999,2]
[324857945,1714375838089,-5657.15019579,0.00011,2]
[324857946,1714375838098,-2450.0,0.00011,3]
[324857947,1714375838110,-1155.15,0.0001101,2]
[324857948,1714375838118,-2254.62,0.00011019,2]
[324857949,1714375838127,-163.75,0.00011095,2]
[324857950,1714375838136,-200.0,0.00011133,2]
[324857951,1714375838145,-495.03702777,0.0001114,2]
[324857952,1714375838155,-376.51,0.00011141,2]
[324857953,1714375838164,-426.92,0.00011154,2]
[324857954,1714375838174,-939.78,0.00011155,2]
[324857955,1714375838183,-154.74,0.00011199,2]
[324857956,1714375838192,-171.35,0.00011296,2]
[324857957,1714375838202,-163.76,0.00011461,2]
[324857958,1714375838212,-154.74,0.00011491,2]
[324857959,1714375838221,-628.67,0.00011521,2]
[324857960,1714375838230,-500.0,0.00011776,2]
[324857961,1714375838239,-154.74,0.00011783,2]
[324857963,1714375838247,-2483.9368,0.00011948,2]
[324857965,1714375838257,-542.2271,0.00011951,2]
[324857967,1714375838266,-1030.33792341,0.00012,2]
[324857969,1714375838276,-3346.65,0.0001205,2]
[324857971,1714375838285,-389.35178471,0.00012063,2]
[324857973,1714375838294,-150.0,0.00012192,2]
[324857974,1714375838303,-150.0,0.00012192,2]
[324857975,1714375838313,-150.0,0.00012192,2]
[324857976,1714375838323,-701.32,0.00012192,2]
[324857977,1714375838332,-326.33,0.00012192,2]
[324857978,1714375838342,-191.75,0.00012192,2]
[324857979,1714375838354,-52766.6667,0.00012222,2]
[324857980,1714375838364,-6938.0389,0.00012222,2]
[324857981,1714375838374,-150.0,0.0001227,3]
[324857982,1714375838383,-525.0,0.00012301,2]
[324857983,1714375838392,-150.0,0.00012466,2]
[324857984,1714375838401,-150.0,0.00012466,2]
[324857985,1714375838411,-150.0,0.00012466,2]
[324857986,1714375838420,-150.0,0.00012466,2]
[324857987,1714375838430,-150.0,0.00012466,2]
[324857988,1714375838439,-1547.7811,0.00012497,2]
[324857989,1714375838449,-600.34451097,0.000125,2]
[324857990,1714375838459,-376.51,0.00012533,2]
[324857991,1714375838468,-426.92,0.00012548,2]
[324857992,1714375838477,-1048.42053093,0.00012571,2]
[324857993,1714375838487,-500.0,0.00012595,2]
[324857994,1714375838496,-500.0,0.00012595,2]
[324857995,1714375838505,-206.96,0.00012595,2]
[324857996,1714375838515,-212.13922195,0.00012595,2]
[324857997,1714375838525,-500.0,0.00012595,2]
[324857998,1714375838534,-500.0,0.00012595,2]
[324857999,1714375838543,-500.0,0.00012595,2]
[324858000,1714375838552,-500.0,0.00012595,2]
[324858001,1714375838561,-500.0,0.00012595,2]
[324858002,1714375838570,-500.0,0.00012595,2]
[324858003,1714375838580,-454.12,0.00012595,2]
[324858004,1714375838590,-500.0,0.00012595,2]
[324858005,1714375838599,-598.24,0.00012595,2]
[324858006,1714375838610,-753.72,0.00012595,2]
[324858007,1714375838619,-500.0,0.00012595,2]
[324858008,1714375838628,-500.0,0.00012595,2]
[324858009,1714375838638,-500.0,0.00012595,2]
[324858010,1714375838647,-500.0,0.00012595,2]
[324858011,1714375838656,-500.0,0.00012595,2]
[324858012,1714375838665,-557.2,0.00012595,2]
[324858013,1714375838674,-793.01,0.00012595,2]
[324858014,1714375838683,-500.0,0.00012595,2]
[324858015,1714375838692,-500.0,0.00012595,2]
[324858016,1714375838701,-524.43415469,0.00012595,2]
[324858017,1714375838710,-768.28,0.00012595,2]
[324858018,1714375838720,-500.0,0.00012595,2]
[324858019,1714375838729,-249.55538259,0.00012595,2]
[324858020,1714375838739,-500.0,0.00012595,2]
[324858021,1714375838748,-1321.63,0.00012595,2]
[324858022,1714375838756,-638.04,0.00012595,2]
[324858023,1714375838765,-851.59,0.00012595,2]
[324858024,1714375838775,-500.0,0.00012595,2]
[324858025,1714375838784,-1113.35,0.00012595,2]
[324858026,1714375838793,-500.0,0.00012595,2]
[324858027,1714375838802,-973.32,0.00012595,2]
[324858028,1714375838812,-517.01,0.00012595,2]
[324858029,1714375838822,-500.0,0.00012595,2]
[324858030,1714375838831,-1620.23,0.00012595,2]
[324858031,1714375838840,-582.37,0.00012595,2]
[324858032,1714375838850,-500.0,0.00012595,2]
[324858033,1714375838860,-500.0,0.00012595,2]
[324858034,1714375838872,-500.0,0.00012595,2]
[324858035,1714375838882,-500.0,0.00012595,2]
[324858036,1714375838892,-525.83,0.00012595,2]
[324858037,1714375838901,-689.98,0.00012595,2]
[324858038,1714375838911,-5061.35,0.00012595,2]
[324858039,1714375838921,-500.0,0.00012595,2]
[324858040,1714375838931,-500.0,0.00012595,2]
[324858041,1714375838940,-623.95,0.00012595,2]
[324858042,1714375838950,-500.0,0.00012595,2]
[324858043,1714375838961,-481.94143694,0.00012595,2]
[324858044,1714375838971,-500.0,0.00012595,2]
[324858045,1714375838980,-500.0,0.00012595,2]
[324858046,1714375838989,-500.0,0.00012595,2]
[324858047,1714375838999,-500.0,0.00012595,2]
[324858048,1714375839008,-500.0,0.00012595,2]
[324858049,1714375839017,-500.0,0.00012595,2]
[324858050,1714375839027,-454.49491298,0.00012595,2]
[324858051,1714375839040,-45.50508702,0.00012595,2]
[324858052,1714375839048,-1031.54,0.00012595,2]
[324858053,1714375839058,-500.0,0.00012595,2]
[324858054,1714375839067,-7083.87,0.00012595,2]
[324858055,1714375839077,-500.0,0.00012595,2]
[324858056,1714375839086,-311.17775501,0.00012595,2]
[324858057,1714375839095,-500.0,0.00012595,2]
[324858058,1714375839106,-2432.87,0.00012595,2]
[324858059,1714375839115,-500.0,0.00012595,2]
[324858060,1714375839125,-500.0,0.00012595,2]
[324858061,1714375839134,-1231.24,0.00012595,2]
[324858062,1714375839143,-500.0,0.00012595,2]
[324858063,1714375839153,-500.0,0.00012595,2]
[324858064,1714375839163,-500.0,0.00012595,2]
[324858065,1714375839172,-500.0,0.00012595,2]
[324858066,1714375839184,-500.0,0.00012595,2]
[324858067,1714375839194,-500.0,0.00012596,2]
[324858068,1714375839204,-507.24,0.00012596,2]
[324858069,1714375839213,-500.0,0.00012596,2]
[324858070,1714375839222,-500.0,0.00012596,2]
[324858071,1714375839231,-500.0,0.00012596,2]
[324858072,1714375839241,-924.25,0.00012596,2]
[324858073,1714375839250,-500.0,0.00012596,2]
[324858074,1714375839260,-7500.0,0.000126,2]
[324858075,1714375839270,-317.43976768,0.00012602,2]
[324858076,1714375839279,-166.21191824,0.00012632,2]
[324858077,1714375839288,-156.35,0.0001269,2]
[324858078,1714375839298,-155.0,0.00012698,2]
[324858079,1714375839307,-224.30211539,0.00012698,2]
[324858080,1714375839316,-155.0,0.00012698,2]
[324858081,1714375839326,-1348.2696725,0.00012698,2]
[324858084,1714375840107,-500.0,0.00012595,2]
[324858085,1714375840116,-953.84859047,0.00012698,2]
[324858086,1714375840125,-1137.4885115,0.00012698,2]
[324858087,1714375840135,-155.24472498,0.00012698,2]
[324858088,1714375840144,-1247.52657257,0.00012698,2]
[324858089,1714375840153,-15.53488048,0.00012698,2]
[324858090,1714375840166,-196.93678577,0.00012698,2]
[324858091,1714375840180,-561.25317757,0.00012698,2]
[324858092,1714375840191,-452.64726722,0.00012698,2]
[324858093,1714375840200,-643.404235,0.00012698,2]
[324858094,1714375840210,-621.84015726,0.00012699,2]
[324858095,1714375840219,-500.0,0.00012699,2]
[324858096,1714375840229,-155.09665051,0.00012699,2]
[324858097,1714375840241,-351.17334949,0.00012699,2]
[324858098,1714375840250,-500.0,0.00012699,2]
[324858102,1714375840446,-35.24060358,0.00012699,2]
[324858103,1714375840459,-459.06806508,0.00012699,2]
[324858104,1714375840486,-358.44133134,0.00012699,2]
[324858105,1714375840495,-500.0,0.00012699,2]
[324858106,1714375840505,-500.0,0.00012699,2]
[324858107,1714375840514,-455.79,0.00012699,2]
[324858108,1714375840523,-500.0,0.00012699,2]
[324858109,1714375840533,-500.0,0.00012699,2]
[324858110,1714375840542,-500.0,0.00012699,2]
[324858111,1714375840551,-500.0,0.00012699,2]
[324858112,1714375840560,-786.2,0.00012699,2]
[324858113,1714375840569,-511.11,0.00012699,2]
[324858114,1714375840578,-500.0,0.00012699,2]
[324858115,1714375840587,-995.42,0.00012699,2]
[324858116,1714375840597,-708.7,0.00012699,2]
[324858117,1714375840607,-500.0,0.00012699,2]
[324858118,1714375840616,-833.51,0.00012699,2]
[324858119,1714375840626,-500.0,0.00012699,2]
[324858120,1714375840635,-3255.44268985,0.00012699,2]
[324858127,1714375844171,-2964.57364125,0.000126,2]
[324858128,1714375844184,-3180.47441297,0.000126,2]
[324858129,1714375844196,-1354.95194578,0.000126,2]
[324858130,1714375844206,-469.47635736,0.00012698,2]
[324858131,1714375844216,-1746.68731015,0.00012699,2]
[324858132,1714375844225,-500.0,0.00012699,2]
[324858133,1714375844235,-500.0,0.00012699,2]
[324858134,1714375844244,-500.0,0.00012699,2]
[324858135,1714375844254,-950.2,0.00012699,2]
[324858136,1714375844265,-297.98429061,0.00012699,2]
[324858150,1714375846010,-700.76,0.00012192,2]
[324858152,1714375846020,-1.2604464,0.00012595,2]
[324858154,1714375846033,-498.7395536,0.00012595,2]
[324858156,1714375846043,-193.78570939,0.00012699,2]
[324858158,1714375846052,-500.0,0.00012699,2]
[324858160,1714375846062,-500.0,0.00012699,2]
[324858162,1714375846072,-1419.32837055,0.00012699,2]
[324858165,1714375846084,-1166.89162945,0.00012699,2]
[324858167,1714375846093,-500.0,0.00012699,2]
[324858169,1714375846103,-500.0,0.00012699,2]
[324858171,1714375846113,-500.0,0.00012699,2]
[324858173,1714375846123,-458.14597055,0.00012699,2]
[324858177,1714375846154,-41.85402945,0.00012699,2]
[324858179,1714375846164,-500.0,0.00012699,2]
[324858181,1714375846174,-495.88993281,0.00012699,2]
[324858182,1714375846183,-403.93607538,0.000127,2]
[324858183,1714375846194,-719.95798759,0.000127,2]
[324858185,1714376207947,2542.306,0.0002,60]
[324858188,1714376524732,-330.02468518,9.624e-05,2]
[324858190,1714376668390,586.46,9.321e-05,2]
[324858439,1714377031663,-275.02057098,9.999e-05,2]
[324858441,1714377031674,-874.84193249,0.0001,2]
[324858443,1714377031687,-626.2705505,0.0001,2]
[324858447,1714377031711,-1865.69249295,0.0001,2]
[324858448,1714377031724,-546.01298297,0.0001,2]
[324858449,1714377031820,-561.51132701,0.0001,2]
[324858450,1714377031876,-363.20539468,0.0001,2]
[324858451,1714377031888,-976.73586657,0.0001,2]
[324858452,1714377031986,-579.978432,0.0001,2]
[324858598,1714377037772,-1100.9776138,0.0001,2]
[324858599,1714377038041,-22504.77340703,0.0001,2]
[324858600,1714377038051,-5967.53516342,0.000108,2]
[324858601,1714377038059,-30000.0,0.00011,2]
[324858602,1714377038068,-2450.0,0.00011,3]
[324858603,1714377038078,-2097.91,0.00011059,2]
[324858604,1714377038088,-842.6184496,0.00011139,2]
[324858605,1714377038097,-504.41,0.00011209,2]
[324858607,1714377038106,-150.0,0.00011288,2]
[324858609,1714377038116,-288.03,0.00011309,2]
[324858611,1714377038125,-154.74,0.0001133,2]
[324858613,1714377038135,-595.21,0.0001137,2]
[324858615,1714377038144,-522.35,0.0001137,2]
[324858617,1714377038153,-162.94,0.0001137,2]
[324858619,1714377038162,-522.35,0.0001137,2]
[324858621,1714377038190,-301.25,0.0001137,2]
[324858623,1714377038199,-308.12,0.0001137,2]
[324858626,1714377038209,-522.35,0.00011478,2]
[324858628,1714377038223,-282.65,0.00011478,2]
[324858629,1714377038232,-150.0,0.00011478,2]
[324858631,1714377038241,-162.94,0.00011478,2]
[324858633,1714377038250,-303.26,0.00011478,2]
[324858636,1714377038260,-300.0,0.00011478,2]
[324858638,1714377038270,-774.09,0.0001158,2]
[324858640,1714377038279,-586.46,0.00011585,2]
[324858642,1714377038290,-172.72,0.00011684,2]
[324858643,1714377038299,-800.0,0.0001178,2]
[324858645,1714377038308,-2483.9368,0.000119,2]
[324858647,1714377038317,-389.35178471,0.00011949,2]
[324858649,1714377038327,-30000.0,0.00012,2]
[324858651,1714377038336,-504.18702372,0.00012,2]
[324858653,1714377038345,-15005.49836602,0.00012,2]
[324858655,1714377038355,-3346.65,0.00012,2]
[324858657,1714377038364,-1000.0,0.00012,2]
[324858659,1714377038373,-409.29540933,0.00012054,2]
[324858661,1714377038383,-911.1,0.00012055,2]
[324858663,1714377038393,-414.11,0.00012055,2]
[324858665,1714377038402,-414.11,0.00012055,2]
[324858667,1714377038412,-911.1,0.00012055,2]
[324858670,1714377038422,-414.11,0.00012055,2]
[324858671,1714377038431,-911.1,0.00012055,2]
[324858673,1714377038440,-14935.7,0.00012055,2]
[324858676,1714377038450,-701.32,0.00012078,2]
[324858678,1714377038459,-325.88,0.00012078,2]
[324858679,1714377038468,-1044.7,0.00012078,2]
[324858681,1714377038477,-1000.0,0.000121,2]
[324858683,1714377038487,-8700.0,0.000121,4]
[324858685,1714377038496,-350.66,0.00012192,2]
[324858687,1714377038506,-150.45,0.00012192,2]
[324858689,1714377038515,-300.0,0.00012192,2]
[324858692,1714377038524,-720.12,0.00012192,2]
[324858694,1714377038533,-150.0,0.00012192,2]
[324858695,1714377038543,-150.0,0.00012192,2]
[324858697,1714377038552,-326.33,0.00012192,2]
[324858699,1714377038561,-300.0,0.00012192,2]
[324858701,1714377038571,-350.66,0.00012192,2]
[324858703,1714377038580,-150.0,0.00012192,2]
[324858705,1714377038589,-350.66,0.00012192,2]
[324858707,1714377038599,-350.66,0.00012192,2]
[324858709,1714377038608,-150.0,0.00012192,2]
[324858711,1714377038618,-542.2271,0.000122,2]
[324858712,1714377038627,-6938.0389,0.000122,2]
[324858713,1714377038636,-17500.0,0.000122,4]
[324858714,1714377038645,-150.0,0.0001222,3]
[324858715,1714377038654,-166.88,0.0001224,2]
[324858716,1714377038670,-7500.0,0.00012279,2]
[324858717,1714377038688,-7327.26135778,0.000123,2]
[324858718,1714377038697,-26200.0,0.000123,4]
[324858719,1714377038706,-525.0,0.00012329,2]
[324858720,1714377038716,-156.36,0.00012368,2]
[324858721,1714377038727,-458.19755878,0.0001237,2]
[324858722,1714377038735,-500.0,0.00012377,2]
[324858723,1714377038745,-500.0,0.00012377,2]
[324858724,1714377038753,-500.0,0.00012377,2]
[324858725,1714377038763,-500.0,0.00012377,2]
[324858727,1714377038771,-503.18319624,0.00012377,2]
[324858729,1714377038780,-612.35,0.00012377,2]
[324858731,1714377038790,-597.74,0.00012377,2]
[324858733,1714377038799,-500.0,0.00012377,2]
[324858735,1714377038808,-500.0,0.00012377,2]
[324858737,1714377038817,-1092.06,0.00012377,2]
[324858739,1714377038826,-1002.47,0.00012377,2]
[324858741,1714377038834,-500.0,0.00012377,2]
[324858743,1714377038843,-500.0,0.00012377,2]
[324858745,1714377038852,-1232.73,0.00012377,2]
[324858747,1714377038861,-500.0,0.00012377,2]
[324858749,1714377038871,-655.45,0.00012377,2]
[324858751,1714377038881,-500.0,0.00012377,2]
[324858753,1714377038890,-500.0,0.00012377,2]
[324858755,1714377038899,-500.0,0.00012377,2]
[324858757,1714377038911,-500.45,0.00012377,2]
[324858759,1714377038920,-500.0,0.00012377,2]
[324858761,1714377038929,-1059.31,0.00012377,2]
[324858763,1714377038938,-500.0,0.00012377,2]
[324858765,1714377038947,-666.65,0.00012377,2]
[324858767,1714377038956,-500.0,0.00012377,2]
[324858769,1714377038965,-986.75,0.00012377,2]
[324858771,1714377038974,-500.0,0.00012377,2]
[324858773,1714377038983,-500.0,0.00012377,2]
[324858775,1714377038993,-500.0,0.00012377,2]
[324858777,1714377039003,-500.0,0.00012377,2]
[324858779,1714377039013,-6385.6,0.00012377,2]
[324858780,1714377039022,-500.0,0.00012377,2]
[324858782,1714377039032,-606.92205277,0.00012377,2]
[324858784,1714377039042,-500.0,0.00012377,2]
[324858786,1714377039051,-500.0,0.00012377,2]
[324858788,1714377039060,-500.0,0.00012377,2]
[324858790,1714377039070,-500.0,0.00012377,2]
[324858791,1714377039078,-335.84,0.00012377,2]
[324858792,1714377039087,-500.0,0.00012377,2]
[324858793,1714377039096,-500.0,0.00012378,2]
[324858794,1714377039105,-500.0,0.00012378,2]
[324858795,1714377039115,-500.0,0.00012378,2]
[324858796,1714377039124,-500.0,0.00012378,2]
[324858797,1714377039132,-500.0,0.00012378,2]
[324858798,1714377039141,-500.0,0.00012378,2]
[324858799,1714377039150,-500.0,0.00012378,2]
[324858800,1714377039159,-305.65898772,0.00012378,2]
[324858801,1714377039183,-500.0,0.00012378,2]
[324858802,1714377039191,-251.06996746,0.00012378,2]
[324858803,1714377039200,-500.0,0.00012378,2]
[324858804,1714377039213,-500.0,0.00012378,2]
[324858805,1714377039223,-500.0,0.00012378,2]
[324858806,1714377039232,-500.0,0.00012378,2]
[324858807,1714377039241,-500.0,0.00012378,2]
[324858808,1714377039250,-500.0,0.00012378,2]
[324858809,1714377039259,-154.3270309,0.00012378,2]
[324858810,1714377039267,-177.88,0.00012378,2]
[324858811,1714377039276,-518.07140016,0.00012378,2]
[324858812,1714377039287,-500.0,0.00012378,2]
[324858813,1714377039296,-500.0,0.00012378,2]
[324858814,1714377039304,-500.0,0.00012378,2]
[324858815,1714377039313,-500.0,0.00012378,2]
[324858816,1714377039322,-500.0,0.00012378,2]
[324858817,1714377039331,-500.0,0.00012378,2]
[324858818,1714377039340,-500.0,0.00012378,2]
[324858819,1714377039349,-500.0,0.00012378,2]
[324858820,1714377039358,-500.0,0.00012378,2]
[324858821,1714377039367,-526.21,0.00012378,2]
[324858822,1714377039375,-500.0,0.00012378,2]
[324858823,1714377039384,-500.0,0.00012378,2]
[324858824,1714377039393,-585.78,0.00012378,2]
[324858825,1714377039402,-508.10728122,0.00012378,2]
[324858826,1714377039411,-500.0,0.00012378,2]
[324858827,1714377039420,-452.35164571,0.00012378,2]
[324858828,1714377039429,-498.65589792,0.00012378,2]
[324858829,1714377039438,-500.0,0.00012378,2]
[324858830,1714377039447,-616.2,0.00012378,2]
[324858831,1714377039457,-500.0,0.00012378,2]
[324858832,1714377039466,-500.0,0.00012378,2]
[324858833,1714377039475,-500.0,0.00012378,2]
[324858834,1714377039484,-517.24,0.00012378,2]
[324858835,1714377039493,-500.0,0.00012378,2]
[324858836,1714377039503,-275.74,0.00012378,2]
[324858837,1714377039512,-500.0,0.00012378,2]
[324858838,1714377039521,-500.0,0.00012378,2]
[324858839,1714377039531,-500.0,0.00012378,2]
[324858840,1714377039540,-227.36229434,0.00012378,2]
[324858841,1714377039548,-500.0,0.00012378,2]
[324858842,1714377039557,-503.06505384,0.00012378,2]
[324858843,1714377039566,-507.69948382,0.00012378,2]
[324858844,1714377039575,-500.0,0.00012378,2]
[324858845,1714377039585,-500.0,0.00012378,2]
[324858846,1714377039594,-500.0,0.00012378,2]
[324858847,1714377039603,-500.0,0.00012378,2]
[324858848,1714377039613,-505.66351686,0.00012378,2]
[324858849,1714377039623,-500.0,0.00012378,2]
[324858850,1714377039633,-500.0,0.00012378,2]
[324858851,1714377039643,-509.35,0.00012378,2]
[324858852,1714377039652,-500.0,0.00012378,2]
[324858853,1714377039662,-500.0,0.00012378,2]
[324858854,1714377039676,-547.65267192,0.00012378,2]
[324858855,1714377039693,-500.0,0.00012378,2]
[324858856,1714377039702,-500.0,0.00012378,2]
[324858858,1714377039712,-500.0,0.00012378,2]
[324858859,1714377039721,-500.0,0.00012378,2]
[324858860,1714377039731,-500.0,0.00012378,2]
[324858861,1714377039740,-500.0,0.00012378,2]
[324858862,1714377039749,-500.0,0.00012378,2]
[324858863,1714377039759,-500.0,0.00012378,2]
[324858864,1714377039768,-500.0,0.00012378,2]
[324858865,1714377039779,-195.73752537,0.00012378,2]
[324858866,1714377039788,-500.0,0.00012378,2]
[324858867,1714377039798,-500.0,0.00012378,2]
[324858868,1714377039808,-500.0,0.00012378,2]
[324858869,1714377039819,-500.0,0.00012378,2]
[324858870,1714377039829,-500.0,0.00012378,2]
[324858871,1714377039838,-265.35,0.00012378,2]
[324858872,1714377039848,-500.0,0.00012378,2]
[324858873,1714377039857,-500.0,0.00012378,2]
[324858874,1714377039867,-500.0,0.00012378,2]
[324858875,1714377039875,-500.0,0.00012378,2]
[324858876,1714377039885,-448.38,0.00012378,2]
[324858877,1714377039896,-500.0,0.00012378,2]
[324858878,1714377039905,-647.12,0.00012378,2]
[324858879,1714377039922,-553.68,0.00012378,2]
[324858880,1714377040138,-500.0,0.00012378,2]
[324858881,1714377040148,-521.10637359,0.00012378,2]
[324858882,1714377040158,-491.69992721,0.00012378,2]
[324858883,1714377040177,-504.16233848,0.00012378,2]
[324858884,1714377040187,-500.0,0.00012378,2]
[324858885,1714377040196,-500.0,0.00012378,2]
[324858886,1714377040206,-500.0,0.00012378,2]
[324858887,1714377040216,-500.0,0.00012378,2]
[324858888,1714377040226,-500.0,0.00012378,2]
[324858889,1714377040261,-500.0,0.00012378,2]
[324858890,1714377040271,-8844.9134,0.00012379,2]
[324858891,1714377040280,-500.0,0.00012379,2]
[324858892,1714377040289,-500.0,0.00012379,2]
[324858893,1714377040301,-500.0,0.00012379,2]
[324858895,1714377040311,-500.0,0.00012379,2]
[324858897,1714377040320,-500.0,0.00012379,2]
[324858899,1714377040330,-500.0,0.00012379,2]
[324858901,1714377040338,-500.0,0.00012379,2]
[324858903,1714377040347,-500.0,0.00012379,2]
[324858905,1714377040356,-500.0,0.00012379,2]
[324858907,1714377040365,-500.0,0.00012379,2]
[324858909,1714377040375,-500.0,0.00012379,2]
[324858911,1714377040384,-500.0,0.00012379,2]
[324858913,1714377040393,-571.2,0.00012379,2]
[324858915,1714377040402,-500.0,0.00012379,2]
[324858917,1714377040411,-500.0,0.00012379,2]
[324858919,1714377040431,-500.0,0.00012379,2]
[324858921,1714377040443,-500.0,0.00012379,2]
[324858923,1714377040452,-503.84956728,0.00012379,2]
[324858925,1714377040461,-500.0,0.00012379,2]
[324858927,1714377040471,-500.0,0.00012379,2]
[324858929,1714377040480,-500.0,0.00012379,2]
[324858931,1714377040489,-500.0,0.00012379,2]
[324858933,1714377040499,-500.0,0.00012379,2]
[324858935,1714377040507,-500.0,0.00012379,2]
[324858937,1714377040517,-500.0,0.00012379,2]
[324858939,1714377040527,-500.0,0.00012379,2]
[324858941,1714377040537,-500.0,0.00012379,2]
[324858943,1714377040546,-500.0,0.00012379,2]